[Event "German Rapid Championship 2022"]
[Site "Goettingen"]
[Date "2022.09.25"]
[Round "7.4"]
[White "Heider, Martin"]
[Black "Spiess, Gunter"]
[Result "1-0"]
[ECO "A06"]
[WhiteElo "2393"]
[BlackElo "2384"]
[Annotator "TA"]
[PlyCount "67"]
[EventDate "2022.09.24"]
[EventType "swiss"]
[EventCountry "GER"]
[SourceTitle "playchess.com"]
[Source "ChessBase"]
[SourceQuality "1"]
[TimeControl "900+10"]

{[%evp 19,67,27,27,17,33,26,41,45,39,51,46,34,117,87,100,85,83,88,83,77,84,83,71,80,277,272,251,252,309,102,524,517,521,513,591,585,577,580,1151,262,573,573,589,551,872,852,1061,781,950,911]} 1. Nf3 {[%emt 0:00:03]} d5 {[%emt 0:00:02]} 2. e3 {[%emt 0:00:07]} Nf6 {[%emt 0:00:04]} 3. c4 {[%emt 0:00:01]} e6 {[%emt 0:00:07]} 4. Nc3 {[%emt 0:00:07]} dxc4 {[%emt 0:00:12]} 5. Bxc4 {[%emt 0:00:04]} c5 {[%emt 0:00:01]} 6. O-O {[%emt 0:00:29]} a6 {[%emt 0:00:01]} 7. d4 {[%emt 0:01:36]} b5 {[%emt 0:00:01]} 8. Be2 {[%emt 0:00:21]} Bb7 {[%emt 0:00:16]} 9. dxc5 {[%emt 0:00:28]} Bxc5 {[%emt 0:00:29]} 10. Qxd8+ {[%emt 0:00:24]} Kxd8 {[%emt 0:00:01]} 11. Nd2 {[%emt 0:00:54] D27: Queen's Gambit Accepted: Classical main line: 7 e4!? and 7 a4.} Nbd7 {[%emt 0:00:21]} 12. Nb3 {[%emt 0:00:02]} Bb6 {[%emt 0:00:36]} 13. a4 {[%emt 0:00:25] White is slightly better.} b4 {[%emt 0:00:34]} 14. a5 {[%emt 0:00:26]} Bc7 {[%emt 0:00:06]} 15. Na4 {[%emt 0:00:23]} Bd6 {[%emt 0:00:11]} (15... Bd5 $1 $14 16. Bf3 Ne4) 16. Rd1 {[%emt 0:01:09] [#]} Ke7 $146 {[%emt 0:00:03]} ({Predecessor:} 16... Bd5 17. Nd2 Ke7 18. Nc4 Bxc4 19. Bxc4 Rhc8 20. Be2 Bc7 21. Bd2 Bxa5 22. Rdc1 Rxc1+ 23. Rxc1 {1-0 (31) Girya,O (2479)-Semenova,E (2263) Sochi 2018}) 17. f3 {[%emt 0:00:35]} Bd5 {[%emt 0:02:06]} 18. Nd4 {[%emt 0:00:47]} Rhc8 {[%emt 0:00:48]} 19. e4 {[%emt 0:01:08]} Bc4 {[%emt 0:00:01]} 20. Bxc4 {[%emt 0:01:22]} Rxc4 {[%emt 0:00:02]} 21. Be3 {[%emt 0:01:32]} Rac8 $2 {[%emt 0:02:02]} (21... Be5 $16 {is a better defense.}) 22. Nb6 $18 {[%emt 0:01:54]} Nxb6 {[%emt 0:00:02]} 23. axb6 {[%emt 0:00:01]} Be5 {[%emt 0:07:53]} 24. Rxa6 $2 {[%emt 0:01:12]} (24. Nb3 $18) 24... Bxd4 $4 {[%emt 0:00:46][%mdl 8192]} (24... Rd8 $16 {is tougher.}) 25. Bxd4 {[%emt 0:01:15] Hoping for Ra7+.} ({Weaker is} 25. Rxd4 Rxd4 26. Bxd4 Nd7 27. Bxg7 Rc6 $18) 25... Nd7 {[%emt 0:01:08]} 26. Ra7 {[%emt 0:00:34]} Rc1 {[%emt 0:00:16]} 27. Rxc1 {[%emt 0:01:15]} Rxc1+ {[%emt 0:00:02][%mdl 4096] Endgame KRB-KRN} 28. Kf2 {[%emt 0:00:00] Rc7 is the strong threat.} Kd6 {[%emt 0:00:50] Prevents Rc7.} 29. Bxg7 {[%emt 0:00:56]} (29. e5+ Ke7 30. b7) 29... f6 $2 {[%emt 0:00:07]} (29... Rc8 {is more resistant.} 30. f4 Nxb6 31. Be5+ Kc6 32. Rxf7 Nc4 33. Rxh7 Nxe5) 30. b7 {[%emt 0:00:12] White is clearly winning.} Rc2+ {[%emt 0:00:17]} 31. Kg3 {[%emt 0:00:03]} Rxb2 {[%emt 0:00:22] [#]} 32. Bxf6 $1 {[%emt 0:00:06][%mdl 512]} e5 {[%emt 0:00:03] [#]} (32... Rc2 33. Ra8) 33. Ra5 $1 {[%emt 0:00:25] Threatening mate with Rd5+.} Kc6 {[%emt 0:00:12] [#]} (33... Kc7 34. Rb5) 34. Rd5 $1 {[%emt 0:00:11] Black did not feel at home in the position after the opening.  Weighted Error Value: White=0.50/Black=0.82} 1-0

[Event "German Rapid Championship 2022"]
[Site "Goettingen"]
[Date "2022.09.25"]
[Round "7.5"]
[White "Arndt, Magnus"]
[Black "Krastev, Alexander"]
[Result "1-0"]
[ECO "B40"]
[WhiteElo "2384"]
[BlackElo "2431"]
[Annotator "TA"]
[PlyCount "113"]
[EventDate "2022.09.24"]
[EventType "swiss"]
[EventCountry "GER"]
[SourceTitle "playchess.com"]
[Source "ChessBase"]
[SourceQuality "1"]
[TimeControl "900+10"]

{[%evp 12,113,14,19,4,0,9,-8,0,-5,9,-13,-10,-35,-8,-20,-4,-23,-22,-13,-8,-14,-28,-16,-19,-9,-10,-18,-23,-22,-8,-8,-8,-11,-12,-15,-8,-8,-10,-11,-6,-6,-4,-19,-19,-12,-4,-5,-7,-14,-3,-3,-3,-10,-10,-10,-10,-17,-3,-3,0,0,0,0,8,0,0,0,0,-8,0,-8,0,0,0,-73,-73,-73,-73,-73,-73,-635,-292,-262,-245,-209,0,0,2343,5306,6041,5509,6431,5177,29972,29973,29969,29969,29967,29969,29990,29991,29997,829]} 1. e4 {[%emt 0:00:02]} c5 {[%emt 0:00:01]} 2. Nf3 {[%emt 0:00:02]} e6 {[%emt 0:00:01]} 3. c3 {[%emt 0:00:04]} d5 {[%emt 0:00:00]} 4. exd5 {[%emt 0:00:03]} Qxd5 {[%emt 0:00:02]} 5. d4 {[%emt 0:00:04]} Nf6 {[%emt 0:00:01]} 6. Na3 {[%emt 0:00:14][%cal Bb1a3,Ba3b5,Bb5d4][%mdl 32]} Nc6 {[%emt 0:00:08]} 7. Be3 {[%emt 0:00:21]} cxd4 {[%emt 0:01:09] B22: Sicilian: 2 c3.} 8. Nb5 $1 {[%emt 0:00:03]} ({But not} 8. Nxd4 Bxa3 9. bxa3 O-O $15) 8... Qd7 {[%emt 0:00:35] Inhibits Nc7+.} 9. Nfxd4 {[%emt 0:00:29]} a6 {[%emt 0:00:48] The position is equal.} 10. Nxc6 {[%emt 0:00:43]} Qxc6 {[%emt 0:00:03]} 11. Nd4 {[%emt 0:03:20]} Qc7 {[%emt 0:00:01] [#]} 12. Be2 $146 {[%emt 0:02:23]} ({Predecessor:} 12. Bd3 Nd5 13. Bd2 g6 14. O-O Bg7 15. Qa4+ Bd7 16. Qa3 Bxd4 17. cxd4 Bc6 18. Be4 {0-1 (39) Mammadov,Z (2391)-Esen,B (2476) Ankara 2022}) 12... Be7 {[%emt 0:00:08]} 13. O-O {[%emt 0:00:08]} O-O {[%emt 0:00:02]} 14. Qc2 {[%emt 0:00:23]} Nd5 {[%emt 0:00:55]} 15. Bd2 {[%emt 0:00:35]} b6 {[%emt 0:00:38]} 16. Bf3 {[%emt 0:00:24] [#] c4 is the strong threat.} (16. Bd3 $5 {[%cal Rd3h7]}) 16... Bb7 {[%emt 0:00:03]} 17. c4 {[%emt 0:00:56]} Nb4 {[%emt 0:00:19]} 18. Bxb4 {[%emt 0:00:44]} Bxb4 {[%emt 0:00:02]} 19. Rac1 {[%emt 0:01:20]} Rfd8 {[%emt 0:01:14]} 20. Rfd1 {[%emt 0:01:04]} Be7 {[%emt 0:00:08]} 21. Qe2 $1 {[%emt 0:00:47]} Bf6 {[%emt 0:02:17]} 22. Bxb7 {[%emt 0:00:10]} Qxb7 {[%emt 0:00:01]} 23. Nf3 {[%emt 0:00:03]} g6 {[%emt 0:00:54]} 24. b3 {[%emt 0:00:03]} Qc7 {[%emt 0:01:40]} 25. h3 {[%emt 0:00:27]} Qc5 {[%emt 0:00:14]} 26. Rxd8+ {[%emt 0:00:56]} Rxd8 {[%emt 0:00:01]} 27. Rd1 {[%emt 0:00:01]} Rxd1+ {[%emt 0:01:24]} 28. Qxd1 $11 {[%emt 0:00:01][%mdl 4096] Endgame KQB-KQN} Qa3 {[%emt 0:00:01]} 29. Qd2 {[%emt 0:00:16]} Kg7 {[%emt 0:03:41]} 30. Ne1 {[%emt 0:01:28]} Qb2 {[%emt 0:00:43]} 31. Qxb2 {[%emt 0:00:24]} Bxb2 {[%emt 0:00:01] KB-KN} 32. Nd3 {[%emt 0:00:01]} Bd4 {[%emt 0:00:21]} 33. Kf1 {[%emt 0:00:10]} a5 {[%emt 0:00:45]} 34. Ke2 {[%emt 0:00:10]} f5 {[%emt 0:00:12]} 35. f4 {[%emt 0:00:27]} Kf6 {[%emt 0:00:02]} 36. a3 {[%emt 0:00:10]} h6 {[%emt 0:00:42]} 37. b4 {[%emt 0:00:08]} a4 {[%emt 0:00:26]} 38. g3 {[%emt 0:01:22]} g5 {[%emt 0:00:10]} 39. Kf3 {[%emt 0:00:02]} Ke7 {[%emt 0:01:01]} 40. g4 {[%emt 0:00:22]} Kf6 {[%emt 0:00:12]} 41. gxf5 {[%emt 0:00:20]} Kxf5 {[%emt 0:00:14]} 42. fxg5 {[%emt 0:00:02]} hxg5 {[%emt 0:00:03]} 43. c5 {[%emt 0:00:34]} (43. Ne1 $11 {keeps the balance.}) 43... e5 $17 {[%emt 0:00:19][%cal Be6e5,Be5e4][%mdl 32] White must now prevent ...e4+.} 44. c6 {[%emt 0:00:30] Strongly threatening c7.} e4+ {[%emt 0:00:03]} 45. Kg2 {[%emt 0:00:01] aiming for c7.} Ke6 {[%emt 0:00:22]} (45... exd3 $2 46. c7 $18) 46. Ne1 {[%emt 0:00:00][%mdl 8192]} (46. Nf2 $17 e3 47. Nd3) 46... Kd6 {[%emt 0:00:17]} (46... Be5 $142 47. b5 Kd5) 47. b5 $19 {[%emt 0:00:11]} Be5 {[%emt 0:00:11]} 48. Kf2 {[%emt 0:00:23] [#]} Bf4 {[%emt 0:00:08]} (48... Kd5 $1 $19 {Hoping for ...Bd6.} 49. Ng2 Bd6) 49. Ng2 $1 $11 {[%emt 0:00:10]} Bc1 {[%emt 0:00:04][%mdl 8192]} (49... Be5 $11) 50. Ne3 $18 {[%emt 0:00:00]} Kc7 {[%emt 0:00:29]} 51. Nd5+ {[%emt 0:00:09]} Kb8 {[%emt 0:00:08]} 52. Nxb6 {[%emt 0:00:03]} Bxa3 {[%emt 0:00:02]} 53. Nxa4 {[%emt 0:00:02] White mates.} Bc1 {[%emt 0:00:05]} 54. b6 {[%emt 0:00:03][%cal Bb5b6,Bb6b7][%mdl 32]} Bd2 {[%emt 0:00:26]} 55. Nc5 {[%emt 0:00:07]} Ba5 {[%emt 0:00:07]} 56. Na6+ {[%emt 0:00:04]} Ka8 {[%emt 0:00:04]} 57. b7+ {[%emt 0:00:01] Weighted Error Value: White=0.16 (very precise) /Black=0.29 (precise)} 1-0

[Event "German Rapid Championship 2022"]
[Site "Goettingen"]
[Date "2022.09.25"]
[Round "7.6"]
[White "Langrock, Hannes"]
[Black "Kopylov, Michael"]
[Result "0-1"]
[ECO "D02"]
[WhiteElo "2358"]
[BlackElo "2371"]
[Annotator "TA"]
[PlyCount "72"]
[EventDate "2022.09.24"]
[EventType "swiss"]
[EventCountry "GER"]
[SourceTitle "playchess.com"]
[Source "ChessBase"]
[SourceQuality "1"]
[TimeControl "900+10"]

{[%evp 17,72,16,16,9,49,43,54,27,25,33,33,16,27,41,52,2,5,-12,-18,-6,-15,-36,100,78,170,168,164,179,150,136,107,75,77,4,9,-270,-46,-102,-110,-101,-47,-61,-40,-34,-36,-90,-94,-137,-137,-155,-135,-175,-52,-166,-120,-687,-666]} 1. d4 {[%emt 0:00:03]} d5 {[%emt 0:01:00]} 2. Nf3 {[%emt 0:00:05]} Nf6 {[%emt 0:00:10]} 3. g3 {[%emt 0:00:03]} e6 {[%emt 0:00:32]} 4. Bg2 {[%emt 0:00:02]} Be7 {[%emt 0:00:03]} 5. O-O {[%emt 0:00:03]} O-O {[%emt 0:00:03]} 6. c4 {[%emt 0:00:05]} c6 {[%emt 0:00:04]} 7. Qc2 {[%emt 0:00:36]} b6 {[%emt 0:00:16]} 8. Nbd2 {[%emt 0:00:10]} Bb7 {[%emt 0:00:24]} 9. e4 {[%emt 0:00:22]} Na6 {[%emt 0:00:03]} 10. a3 {[%emt 0:00:43] The main line 10.a3 scores better than 10.e5. E06: Closed Catalan: Early deviations.} Rc8 {[%emt 0:00:18]} 11. b4 {[%emt 0:02:30]} c5 {[%emt 0:03:41]} 12. exd5 {[%emt 0:00:20] White is slightly better.} exd5 {[%emt 0:00:13]} 13. dxc5 {[%emt 0:00:30]} bxc5 {[%emt 0:00:05]} 14. b5 {[%emt 0:00:06]} Nc7 {[%emt 0:00:04]} 15. Ne5 {[%emt 0:01:38]} Ne6 {[%emt 0:00:35] [#]} 16. Nb3 $146 {[%emt 0:01:25]} (16. Bb2 $14) ({Predecessor:} 16. Bb2 Nd4 17. Qa4 Qc7 18. Rfe1 Bd6 19. Bxd4 cxd4 20. Nd3 a6 21. cxd5 Qc3 22. bxa6 {½-½ (42) Flear,G (2490)-Garcia Palermo,C (2530) Zenica 1987}) 16... Qc7 $11 {[%emt 0:04:08]} 17. Bb2 {[%emt 0:01:22]} dxc4 {[%emt 0:02:39]} 18. Qxc4 {[%emt 0:00:56]} Bxg2 {[%emt 0:00:03]} 19. Kxg2 {[%emt 0:00:02]} Qb7+ {[%emt 0:00:15]} (19... Ne8 $15) 20. Nc6 $16 {[%emt 0:01:14]} Nd7 {[%emt 0:01:12]} (20... Bd8 $16) 21. Nba5 $1 $18 {[%emt 0:01:37]} Qa8 {[%emt 0:00:01]} 22. Qd5 {[%emt 0:00:48]} Bf6 {[%emt 0:00:42]} 23. Qxd7 {[%emt 0:02:26]} Bxb2 {[%emt 0:00:04]} 24. Ra2 {[%emt 0:01:02]} Rc7 {[%emt 0:00:44] [#]} 25. Qd5 {[%emt 0:00:35]} (25. Qd3 $1 $16 Bf6 26. f3) 25... Bc3 $132 {[%emt 0:00:12][%mdl 2048] Black is not keeping still} 26. Nc4 {[%emt 0:00:18][%mdl 8192] [#]} (26. Rd1 $1 $11 {and White has nothing to worry.}) 26... Nd4 $2 {[%emt 0:00:20]} (26... a6 $1 $19 {[%cal Ra6b5]} 27. Nb6 Qb7) 27. a4 {[%emt 0:00:25]} (27. Rc1 $15) 27... Nxc6 $17 {[%emt 0:00:15]} 28. bxc6 {[%emt 0:00:02]} Qxc6 {[%emt 0:00:02]} (28... Rd8 $17 29. Qf3 Qxc6) 29. Rd1 {[%emt 0:00:10]} Bd4 {[%emt 0:00:18]} 30. Qxc6 {[%emt 0:00:06]} Rxc6 {[%emt 0:00:00]} 31. Rd3 {[%emt 0:00:15]} (31. Rb1 $15) 31... Rb8 {[%emt 0:00:04]} 32. Re2 {[%emt 0:00:04][%cal Od3b3]} g6 {[%emt 0:00:07]} 33. Re7 {[%emt 0:00:14]} Rb4 {[%emt 0:00:07]} 34. Na5 {[%emt 0:00:20]} Ra6 {[%emt 0:00:44]} ({Black should try} 34... Rc8 $19 {aiming for ...Rb2.} 35. Rxa7 Rb2) 35. Nb7 {[%emt 0:00:12]} (35. Nb3 $15) 35... Rf6 {[%emt 0:00:24]} ({Black should play} 35... Rbxa4 $19 36. Rc7 Ra2) 36. Re2 $2 {[%emt 0:00:06][%mdl 8192]} Rxb7 {Never resign too early!  Weighted Error Value: White=0.60/Black=0.44} 0-1

[Event "German Rapid Championship 2022"]
[Site "Goettingen"]
[Date "2022.09.25"]
[Round "7.7"]
[White "Feuerstack, Aljoscha"]
[Black "Langheinrich, Ferenc"]
[Result "1-0"]
[ECO "B06"]
[WhiteElo "2464"]
[BlackElo "2366"]
[Annotator "TA"]
[PlyCount "75"]
[EventDate "2022.09.24"]
[EventType "swiss"]
[EventCountry "GER"]
[SourceTitle "playchess.com"]
[Source "ChessBase"]
[SourceQuality "1"]
[TimeControl "900+10"]

{[%evp 16,75,62,33,22,41,57,57,58,52,54,46,69,47,73,34,53,48,60,3,9,4,8,0,7,0,29,43,39,7,99,94,249,224,211,218,284,285,277,269,270,259,332,314,1838,1685,899,322,346,356,377,374,368,361,329,327,350,348,331,220,863,826]} 1. e4 {[%emt 0:00:03]} g6 {[%emt 0:00:10]} 2. d4 {[%emt 0:00:03]} Bg7 {[%emt 0:00:03]} 3. Nf3 {[%emt 0:00:14]} d6 {[%emt 0:00:15]} 4. Bd3 {[%emt 0:00:12]} Nf6 {[%emt 0:00:58]} 5. O-O {[%emt 0:00:03]} O-O {[%emt 0:00:04]} 6. h3 {[%emt 0:00:12]} Nc6 {[%emt 0:00:17]} 7. c3 {[%emt 0:00:07]} e5 {[%emt 0:00:07]} 8. Re1 {[%emt 0:00:04]} Re8 {[%emt 0:01:00]} 9. Na3 {[%emt 0:00:32]} a6 {[%emt 0:01:03] B07: Pirc Defence: Miscellaneous Systems.} 10. Nc2 {[%emt 0:00:28]} exd4 {[%emt 0:00:18]} 11. cxd4 {[%emt 0:00:06] [#]} d5 $146 {[%emt 0:00:01][%cal Rd5e4] White is slightly better.} ({Predecessor:} 11... h6 12. Bf4 d5 13. e5 Ne4 14. Nd2 Bf5 15. Nxe4 dxe4 16. Bxe4 Bxe4 17. Rxe4 Qd5 {½-½ (42) Svetushkin,D (2574)-Bortnyk,O (2566) Kishinev 2017}) 12. e5 {[%emt 0:00:11]} Ne4 {[%emt 0:00:06] Against Bg5} 13. Bxe4 {[%emt 0:03:14]} dxe4 {[%emt 0:00:03]} 14. Ng5 {[%emt 0:00:02]} Qd5 {[%emt 0:01:13]} 15. Bf4 {[%emt 0:05:48]} h6 {[%emt 0:03:17]} 16. Nxe4 {[%emt 0:00:15][%cal Of4h6] [#] Strongly threatening Bxh6!} Bf5 $1 {[%emt 0:00:05]} 17. Nf6+ {[%emt 0:01:55]} (17. f3 $1 $14) 17... Bxf6 $11 {[%emt 0:00:03]} 18. exf6 {[%emt 0:00:01]} Rxe1+ {[%emt 0:02:31]} 19. Nxe1 {[%emt 0:00:02]} Nxd4 {[%emt 0:01:13]} 20. Bxh6 {[%emt 0:01:23]} Re8 {[%emt 0:01:11]} 21. Be3 {[%emt 0:00:08]} c5 {[%emt 0:00:03]} 22. Qd2 {[%emt 0:00:11]} Be4 {[%emt 0:01:05]} (22... Rd8 $11) 23. Rd1 $16 {[%emt 0:01:48]} Bxg2 $2 {[%emt 0:02:01] Loses the game.} 24. Bxd4 $18 {[%emt 0:00:01][%cal Od2h6]} Bxh3 {[%emt 0:00:01] ( -> ...Rxe1+)} 25. Be3 {[%emt 0:00:12]} Qf5 {[%emt 0:00:18]} 26. Qd6 {[%emt 0:01:18]} Qg4+ {[%emt 0:00:49]} 27. Kh2 {[%emt 0:00:17]} ({Much less strong is} 27. Kh1 $6 Bf1 $18) 27... Bf1 {[%emt 0:00:03]} 28. Rd2 {[%emt 0:00:38]} ({Don't take} 28. Bxc5 $6 Qh5+ 29. Kg1 Bb5 $16) ({But not} 28. Qd7 $6 Qh4+ 29. Kg1 Bb5 $16) 28... Qh3+ {[%emt 0:00:18]} 29. Kg1 {[%emt 0:00:00]} Re4 $2 {[%emt 0:00:01]} (29... Bb5) 30. Qb8+ {[%emt 0:00:17]} Kh7 {[%emt 0:00:02] [#]} 31. Qh2 $2 {[%emt 0:00:02]} (31. f3 $1 {[%cal Ob8f8] Threatening mate with Qf8!} Rg4+ 32. Kf2) 31... Rg4+ {[%emt 0:00:25]} 32. Kh1 $1 {[%emt 0:00:02]} Rh4 {[%emt 0:00:04][%csl Gh4][%cal Rh3h2]} 33. Qxh3 {[%emt 0:00:16]} Rxh3+ {[%emt 0:00:01]} 34. Kg1 {[%emt 0:00:01]} Bb5 {[%emt 0:00:02]} 35. Bxc5 {[%emt 0:00:19]} g5 {[%emt 0:00:10]} 36. f3 {[%emt 0:00:05]} Kg6 {[%emt 0:00:08]} 37. Rh2 {[%emt 0:00:26]} Rg3+ {[%emt 0:00:01]} (37... Rxh2 38. Kxh2 Kxf6) 38. Kf2 {[%emt 0:00:03] Weighted Error Value: White=0.32/Black=0.29 (precise)} 1-0

[Event "German Rapid Championship 2022"]
[Site "Goettingen"]
[Date "2022.09.25"]
[Round "7.8"]
[White "Muckle, Julius"]
[Black "Carlstedt, Jonathan"]
[Result "1-0"]
[ECO "D41"]
[WhiteElo "2401"]
[BlackElo "2433"]
[Annotator "TA"]
[PlyCount "81"]
[EventDate "2022.09.24"]
[EventType "swiss"]
[EventCountry "GER"]
[SourceTitle "playchess.com"]
[Source "ChessBase"]
[SourceQuality "1"]
[TimeControl "900+10"]

{[%evp 12,81,41,43,38,38,47,45,39,37,46,0,18,30,0,0,0,0,38,-62,-51,-127,-113,-113,-97,-132,-124,-119,-119,-183,-181,-211,-211,-204,-187,-212,-185,-256,-251,-275,-279,-460,-468,-458,-451,-590,-472,-650,-416,-454,-472,-414,-338,-354,-347,-308,-218,-228,-251,-268,-245,-231,-221,-216,-162,-250,-173,-195,-45,-203,517,498]} 1. d4 {[%emt 0:00:18]} Nf6 {[%emt 0:00:20]} 2. c4 {[%emt 0:00:03]} e6 {[%emt 0:00:02]} 3. Nf3 {[%emt 0:00:02]} d5 {[%emt 0:00:03]} 4. Nc3 {[%emt 0:00:01]} c5 {[%emt 0:00:03]} 5. cxd5 {[%emt 0:00:02]} exd5 {[%emt 0:00:02]} 6. Bg5 {[%emt 0:00:33]} Be6 {[%emt 0:00:02]} 7. e3 {[%emt 0:00:05]} c4 {[%emt 0:00:02] D32: Tarrasch Defence: Sidelines and lines without g3.} 8. Be2 {[%emt 0:00:29]} Nbd7 {[%emt 0:00:04]} 9. O-O {[%emt 0:00:02][%cal Oe3e4]} Bb4 {[%emt 0:00:07] White is slightly better.} 10. Ne5 {[%emt 0:00:53]} O-O {[%emt 0:00:28]} 11. f4 {[%emt 0:00:53] [#]} (11. Nxd7 $14 {might be stronger.} Qxd7 12. Bxf6 gxf6 13. Bh5) 11... h6 $146 {[%emt 0:02:04]} ({Predecessor:} 11... Bxc3 12. bxc3 Bf5 13. g4 Be4 14. Bf3 Bxf3 15. Qxf3 Qa5 16. Nxd7 Nxd7 17. Be7 Rfe8 {0-1 (31) Rostovtsev,D (2302)-Shuvalova,P (2498) Chess.com INT 2022}) 12. Bh4 {[%emt 0:00:30] Black must now prevent f5.} Bxc3 {[%emt 0:01:00]} 13. bxc3 {[%emt 0:00:05] Hoping for f5.} Bf5 {[%emt 0:00:02]} 14. Bf3 {[%emt 0:00:47]} Qa5 {[%emt 0:00:04]} 15. Nxd7 {[%emt 0:00:13]} ({Better is} 15. g4 $14 Bh7 16. f5) 15... Nxd7 $15 {[%emt 0:01:27]} 16. Be7 {[%emt 0:00:16]} (16. g4 $15 Bd3 17. Rf2) 16... Rfe8 $17 {[%emt 0:00:33]} 17. Bb4 {[%emt 0:00:02]} Qb5 {[%emt 0:00:01]} 18. Re1 {[%emt 0:02:24]} a5 {[%emt 0:00:15]} 19. Ba3 {[%emt 0:01:06]} Qc6 {[%emt 0:00:07]} 20. g4 {[%emt 0:01:49]} (20. Bc1 $17) 20... Bd3 $19 {[%emt 0:00:10]} 21. h4 {[%emt 0:00:20] [#]} b5 $1 {[%emt 0:00:25]} 22. g5 {[%emt 0:00:17]} Rab8 {[%emt 0:01:50]} 23. Qd2 {[%emt 0:00:57]} Be4 {[%emt 0:01:41]} 24. Bg4 {[%emt 0:00:23]} (24. Bxe4 $142 Rxe4 25. Rab1) 24... Nb6 {[%emt 0:00:36][%cal Bd7b6,Bb6a4,Ba4c3][%mdl 32]} 25. Rac1 {[%emt 0:03:34]} Na4 {[%emt 0:03:25]} 26. Bd1 $2 {[%emt 0:02:52] [#]} (26. Rf1) 26... Nxc3 $1 {[%emt 0:00:09][%mdl 512]} 27. Qxc3 {[%emt 0:00:29]} ({And not} 27. Rxc3 b4 28. Bxb4 axb4 $19) 27... b4 {[%emt 0:00:02]} 28. Qb2 bxa3 {[%emt 0:00:03]} 29. Qxa3 {[%emt 0:00:02]} Qe6 {[%emt 0:00:02] aiming for ...Qh3.} 30. Kh2 {[%emt 0:00:08] Inhibits Qh3+.} hxg5 {[%emt 0:00:16]} 31. hxg5 {[%emt 0:00:01]} g6 {[%emt 0:00:05] Threatens to win with ...f6.} 32. Kg3 {[%emt 0:00:01]} Kg7 {[%emt 0:01:55] And now ...Rh8 would win.} 33. Bg4 {[%emt 0:00:01]} Qb6 {[%emt 0:00:01]} 34. Re2 {[%emt 0:00:40]} Bd3 {[%emt 0:00:56]} 35. Ree1 {[%emt 0:00:18]} Qb4 {[%emt 0:00:19]} 36. Qc3 {[%emt 0:00:05]} Rh8 {[%emt 0:00:05]} 37. Bf3 {[%emt 0:00:20]} Rbd8 {[%emt 0:00:40]} 38. a3 {[%emt 0:00:04]} (38. Bg2 $142) 38... Qb5 {[%emt 0:01:12]} 39. e4 {[%emt 0:00:09]} Qd7 {[%emt 0:00:36]} ({Black should play} 39... Rb8 $19 40. exd5 Qd7) 40. Bg4 {[%emt 0:00:02] [#]} (40. Rh1 $1 $15) 40... Qc7 $4 {[%emt 0:00:03][%mdl 8192]} (40... Qd6 $1 $19 {and life is good for Black.} 41. e5 Qa6) 41. Qxd3 $1 {[%emt 0:00:04] Quite a comeback for White.  Weighted Error Value: White=0.48/Black=0.48} 1-0

[Event "German Rapid Championship 2022"]
[Site "Goettingen"]
[Date "2022.09.25"]
[Round "7.9"]
[White "Woelk, Tom-Frederic"]
[Black "Reichmann, Hendrik"]
[Result "1/2-1/2"]
[ECO "B28"]
[WhiteElo "2289"]
[BlackElo "2307"]
[Annotator "RC"]
[PlyCount "71"]
[EventDate "2022.09.24"]
[EventType "swiss"]
[EventCountry "GER"]
[SourceTitle "playchess.com"]
[Source "ChessBase"]
[SourceQuality "1"]
[TimeControl "900+10"]

1. e4 {[%emt 0:00:03]} c5 {[%emt 0:00:08]} 2. Nf3 {[%emt 0:00:02]} a6 {[%emt 0:00:09]} 3. c4 {[%emt 0:00:11]} Nc6 {[%emt 0:00:08]} 4. d4 {[%emt 0:00:08]} cxd4 {[%emt 0:00:05]} 5. Nxd4 {[%emt 0:00:02]} e5 {[%emt 0:00:14]} 6. Nb3 {[%emt 0:00:42]} Nf6 {[%emt 0:03:27]} 7. Bd3 {[%emt 0:00:35]} d6 {[%emt 0:02:11]} 8. Nc3 {[%emt 0:00:12]} Be7 {[%emt 0:00:05]} 9. O-O {[%emt 0:00:24]} O-O {[%emt 0:00:22]} 10. Nd5 {[%emt 0:00:06]} Nxd5 {[%emt 0:00:58]} 11. cxd5 {[%emt 0:00:38]} Nb8 {[%emt 0:00:37]} 12. Bd2 {[%emt 0:00:41]} f5 {[%emt 0:02:25]} 13. exf5 {[%emt 0:00:12]} Bxf5 {[%emt 0:00:05]} 14. Bxf5 {[%emt 0:01:38]} Rxf5 {[%emt 0:00:02]} 15. Qg4 {[%emt 0:00:24]} g6 {[%emt 0:00:09]} 16. f4 {[%emt 0:03:16]} Nd7 {[%emt 0:00:03]} 17. fxe5 {[%emt 0:00:48]} Nxe5 {[%emt 0:00:19]} 18. Qe4 {[%emt 0:00:01]} Rxf1+ {[%emt 0:01:00]} 19. Rxf1 {[%emt 0:00:02]} Qb6+ {[%emt 0:01:34]} 20. Be3 {[%emt 0:00:05]} Qb5 {[%emt 0:00:06]} 21. Bd4 {[%emt 0:01:31]} Qd3 {[%emt 0:00:19]} 22. Qe1 {[%emt 0:02:29]} Re8 {[%emt 0:00:30]} 23. Qb4 {[%emt 0:00:54]} Rf8 {[%emt 0:01:20]} 24. Rxf8+ {[%emt 0:02:08]} Bxf8 {[%emt 0:00:01]} 25. h3 {[%emt 0:00:11]} Bh6 {[%emt 0:00:41]} 26. Qe1 {[%emt 0:01:17]} Bf4 {[%emt 0:00:36]} 27. Kh1 {[%emt 0:00:31]} a5 {[%emt 0:00:17]} 28. Qxa5 {[%emt 0:00:21]} Qf1+ {[%emt 0:01:10]} 29. Bg1 {[%emt 0:00:02]} Be3 {[%emt 0:00:22]} 30. Qd8+ {[%emt 0:00:01]} Kf7 {[%emt 0:00:22]} 31. Qc7+ {[%emt 0:00:03]} Ke8 {[%emt 0:00:12]} 32. Qc8+ {[%emt 0:00:01]} Kf7 {[%emt 0:00:08]} 33. Qe6+ {[%emt 0:00:05]} Kg7 {[%emt 0:00:03]} 34. Qe7+ {[%emt 0:00:04]} Kg8 {[%emt 0:00:17]} 35. Qe8+ {[%emt 0:00:10]} Kg7 {[%emt 0:00:03]} 36. Qe7+ {[%emt 0:00:03]} 1/2-1/2